[Event "15th Arad Open 2022"]
[Site "Arad"]
[Date "2022.08.11"]
[Round "6.19"]
[White "Panc, Samuel"]
[Black "Deac, David"]
[Result "1-0"]
[ECO "B20"]
[WhiteElo "1927"]
[BlackElo "1829"]
[Annotator "NA RC"]
[PlyCount "71"]
[EventDate "2022.08.08"]
[EventType "swiss"]
[EventCountry "ROU"]
[SourceTitle "playchess.com"]
[Source "ChessBase"]
[SourceQuality "1"]
[TimeControl "5400+30"]

1. e4 {[%emt 0:00:03]} c5 {[%emt 0:00:04]} 2. d3 {[%emt 0:00:19]} Nc6 {[%emt 0:00:56]} 3. g3 {[%emt 0:00:18]} g6 {[%emt 0:00:39]} 4. Bg2 {[%emt 0:00:05]} Bg7 {[%emt 0:00:09]} 5. c3 {[%emt 0:00:04]} Nf6 {[%emt 0:02:05]} 6. f4 {[%emt 0:00:32]} d6 {[%emt 0:10:23]} 7. Nh3 {[%emt 0:02:15]} O-O {[%emt 0:02:42]} 8. O-O {[%emt 0:00:24]} e5 {[%emt 0:00:48]} 9. f5 {[%emt 0:06:34]} h6 {[%emt 0:16:02]} 10. g4 {[%emt 0:02:39]} Nh7 {[%emt 0:06:12]} 11. Be3 {[%emt 0:02:18]} b6 {[%emt 0:01:20]} 12. Qd2 {[%emt 0:02:12]} g5 {[%emt 0:01:15]} 13. Nf2 {[%emt 0:00:44]} Bf6 {[%emt 0:01:06]} 14. Nh1 {[%emt 0:00:31]} Be7 {[%emt 0:04:14]} 15. Ng3 {[%emt 0:02:04]} Nf6 {[%emt 0:02:02]} 16. Bf3 {[%emt 0:01:15]} Bb7 {[%emt 0:04:57]} 17. Qg2 {[%emt 0:06:04]} Ne8 {[%emt 0:02:26]} 18. Na3 {[%emt 0:07:14]} a6 {[%emt 0:06:03]} 19. Bd2 {[%emt 0:14:41]} b5 {[%emt 0:01:16]} 20. Nc2 {[%emt 0:00:35]} Nf6 {[%emt 0:06:14]} 21. Ne3 {[%emt 0:05:01]} Nb8 {[%emt 0:00:48]} 22. Kf2 {[%emt 0:02:01]} Nbd7 {[%emt 0:02:31]} 23. Rh1 {[%emt 0:01:07]} Ne8 {[%emt 0:00:44]} 24. Ke2 {[%emt 0:13:34]} a5 {[%emt 0:02:33]} 25. h3 {[%emt 0:08:56]} Rb8 {[%emt 0:03:40]} 26. Rh2 {[%emt 0:00:54]} c4 {[%emt 0:04:15]} 27. f6 {[%emt 0:04:30]} cxd3+ {[%emt 0:01:40]} 28. Kf2 {[%emt 0:00:25]} Bxf6 {[%emt 0:00:20]} 29. Ngf5 {[%emt 0:01:14]} Kh7 {[%emt 0:05:42]} 30. h4 {[%emt 0:07:13]} gxh4 {[%emt 0:02:07]} 31. Rah1 {[%emt 0:01:47]} Rh8 {[%emt 0:02:37]} 32. Nxh6 {[%emt 0:04:43]} Kxh6 {[%emt 0:03:41]} 33. Nf5+ {[%emt 0:00:11]} Kg6 {[%emt 0:00:38]} 34. g5 {[%emt 0:00:05]} Bg7 {[%emt 0:02:26]} 35. Rxh4 {[%emt 0:00:54]} Rxh4 {[%emt 0:01:23]} 36. Rxh4 {[%emt 0:00:04]} 1-0

[Event "15th Arad Open 2022"]
[Site "Arad"]
[Date "2022.08.12"]
[Round "7.1"]
[White "Ramoutar, Alan-Safar"]
[Black "Padurean, Daniel-Cristian"]
[Result "1/2-1/2"]
[ECO "C02"]
[WhiteElo "2453"]
[BlackElo "2126"]
[Annotator "TA"]
[PlyCount "63"]
[EventDate "2022.08.08"]
[EventType "swiss"]
[EventCountry "ROU"]
[SourceTitle "playchess.com"]
[Source "ChessBase"]
[SourceQuality "1"]
[TimeControl "5400+30"]

{[%evp 9,63,39,31,23,85,73,66,73,70,61,92,94,90,86,104,96,106,85,81,95,84,51,40,35,44,35,68,19,18,16,18,18,13,3,41,0,0,-21,-18,-24,-29,-27,-26,-56,0,0,46,0,8,-20,31,-56,-33,-49,-39,-50]} 1. e4 {[%emt 0:00:02]} Nc6 {[%emt 0:00:22]} 2. Nf3 {[%emt 0:00:12]} e6 {[%emt 0:00:12]} 3. d4 {[%emt 0:00:57]} d5 {[%emt 0:00:06]} 4. e5 {[%emt 0:00:20]} f6 {[%emt 0:00:12]} 5. c3 {[%emt 0:00:29]} fxe5 {[%emt 0:12:19]} 6. Nxe5 {[%emt 0:00:09] [#] C02: French: Advance Variation.} Nf6 $146 {[%emt 0:00:30]} (6... Nxe5 $11 {remains equal.} 7. dxe5 Ne7) ({Predecessor:} 6... Nh6 7. Bb5 Qf6 8. Nxc6 {1-0 (8) Frotscher,T (2409)-Molzahn,N (2231) ICCF email 2021}) 7. Bd3 {[%emt 0:00:30]} Bd6 {[%emt 0:00:30]} 8. Qe2 {[%emt 0:00:30] White is slightly better.} O-O {[%emt 0:00:30]} 9. O-O {[%emt 0:00:30]} Ne7 {[%emt 0:00:30]} 10. Nd2 {[%emt 0:00:30] White is much more active.} Qe8 {[%emt 0:00:30]} 11. Ndf3 {[%emt 0:00:30]} Qh5 {[%emt 0:00:30]} 12. h3 {[%emt 0:00:30]} c5 {[%emt 0:00:30]} 13. Bf4 {[%emt 0:00:30][%cal Oe5g6]} c4 {[%emt 0:00:30]} 14. Bc2 {[%emt 0:00:30][%cal Oe5g6]} Ne4 {[%emt 0:00:30]} 15. Bc1 {[%emt 0:00:30]} Bxe5 {[%emt 0:00:30]} 16. dxe5 {[%emt 0:00:30]} Bd7 {[%emt 0:00:30]} 17. Re1 {[%emt 0:00:30]} Ng6 {[%emt 0:00:30]} 18. Ng5 {[%emt 0:00:30]} Qxe2 $11 {[%emt 0:00:30]} 19. Rxe2 {[%emt 0:00:30]} Nxg5 {[%emt 0:00:30]} 20. Bxg5 {[%emt 0:00:30]} Nf4 {[%emt 0:00:30]} 21. Re3 {[%emt 0:00:30]} Rf7 {[%emt 0:00:30]} 22. Rd1 {[%emt 0:00:30]} Raf8 {[%emt 0:00:30][%cal Of4g2]} 23. Bh4 {[%emt 0:00:30]} h6 {[%emt 0:00:30]} 24. Bg3 {[%emt 0:00:30]} g5 {[%emt 0:00:30]} 25. Rd4 {[%emt 0:00:30]} Be8 {[%emt 0:00:30]} 26. f3 {[%emt 0:00:30]} Nh5 {[%emt 0:00:30]} ({Better is} 26... Rc7 $15) 27. Bf2 {[%emt 0:00:30]} Rf4 {[%emt 0:00:30]} (27... Nf4 $11) 28. Re1 {[%emt 0:00:30]} (28. Rd2 $14) 28... b6 {[%emt 0:00:30]} 29. Bd1 {[%emt 0:00:30]} Bg6 {[%emt 0:00:30]} (29... Rxd4 $1 $11 30. Bxd4 Bg6) 30. Rxf4 {[%emt 0:00:30]} (30. Rd2 $14) 30... Nxf4 {[%emt 0:00:30]} 31. Bd4 {[%emt 0:00:30]} Nd3 {[%emt 0:00:30][%csl LRb2,LRe1]} 32. Re2 {[%emt 0:00:30] Weighted Error Value: White=0.20 (precise) /Black=0.17 (very precise)} 1/2-1/2

[Event "15th Arad Open 2022"]
[Site "Arad"]
[Date "2022.08.12"]
[Round "7.2"]
[White "Stanciu, Alexandru-Ovidiu"]
[Black "Magold, Filip"]
[Result "1-0"]
[ECO "B22"]
[WhiteElo "2326"]
[BlackElo "2247"]
[Annotator "TA"]
[PlyCount "85"]
[EventDate "2022.08.08"]
[EventType "swiss"]
[EventCountry "ROU"]
[SourceTitle "playchess.com"]
[Source "ChessBase"]
[SourceQuality "1"]
[TimeControl "5400+30"]

{[%evp 15,85,23,48,62,66,56,61,61,79,72,94,80,93,93,102,95,171,169,144,177,163,119,104,93,214,117,110,102,186,146,125,141,136,149,226,218,337,156,199,201,204,204,200,204,192,165,187,183,223,191,388,170,1147,1111,1435,1181,1163,1125,1237,1210,1865,1875,1756,1704,5785,5777,5389,5289,2461,2547,1624,1834]} 1. e4 {[%emt 0:00:33]} c5 {[%emt 0:00:18]} 2. Bc4 {[%emt 0:00:50]} Nc6 {[%emt 0:02:10]} 3. Nf3 {[%emt 0:02:06]} d6 {[%emt 0:06:27]} 4. O-O {[%emt 0:00:15]} g6 {[%emt 0:01:33]} 5. c3 {[%emt 0:04:51]} Bg7 {[%emt 0:00:21]} 6. d4 {[%emt 0:01:02]} cxd4 {[%emt 0:00:27]} 7. cxd4 {[%emt 0:00:12]} Nf6 {[%emt 0:03:02]} 8. Nc3 {[%emt 0:04:58]} O-O {[%emt 0:01:27][%cal Of6e4]} 9. d5 {[%emt 0:16:22] B22: Sicilian: 2 c3.} Nb8 {[%emt 0:09:42]} 10. h3 {[%emt 0:03:34]} Nbd7 {[%emt 0:01:26]} 11. Be3 {[%emt 0:03:09] White is slightly better.} a6 {[%emt 0:02:40]} 12. a4 {[%emt 0:20:16] [#] Against b5} b6 $146 {[%emt 0:15:29]} ({Predecessor:} 12... Qc7 13. Qe2 Nc5 14. a5 b5 15. axb6 Qxb6 16. Na4 Qc7 17. Nxc5 dxc5 18. e5 Nd7 {1-0 (27) Romero Holmes,A (2523)-Papathanasiou,E (1922) Rethymno 2012}) 13. Qe2 {[%emt 0:02:29]} Re8 {[%emt 0:11:12]} 14. Rfd1 {[%emt 0:06:56] 0x0.001b83e84cfbdp-1022s more active pieces. The black rooks are badly placed.} Bb7 {[%emt 0:06:41]} 15. Rac1 {[%emt 0:01:10]} Ne5 {[%emt 0:07:14]} (15... Nc5 $16) 16. Nxe5 $18 {[%emt 0:13:31]} dxe5 {[%emt 0:00:02]} 17. b4 {[%emt 0:03:25]} Qd6 {[%emt 0:02:10]} 18. Qb2 {[%emt 0:00:28]} Rec8 {[%emt 0:02:12]} 19. Bd3 {[%emt 0:04:24][%cal Bc4d3,Bd3b1,Bb1a2][%mdl 32]} e6 {[%emt 0:04:19]} (19... Bf8 $16) 20. dxe6 {[%emt 0:02:59]} ({White should play} 20. b5 $1 $18 {[%cal Rb5a6]}) 20... Qxe6 $16 {[%emt 0:00:02]} 21. Bb1 {[%emt 0:00:10]} h6 {[%emt 0:08:55]} (21... Qe8 $16 {was called for.}) 22. f3 {[%emt 0:00:54]} Bf8 {[%emt 0:00:50]} 23. Ba2 {[%emt 0:00:57]} Qe7 {[%emt 0:00:13]} 24. Qb3 {[%emt 0:00:11]} ({But not} 24. Bxb6 Qxb4 25. Qxb4 Bxb4 $16) 24... Rab8 {[%emt 0:03:09] [#]} (24... Bc6 $16 {is a better defense.} 25. Bxb6 Qe8) 25. b5 $1 $18 {[%emt 0:01:01]} ({Don't play} 25. Bxb6 $6 Bc6) 25... a5 {[%emt 0:02:03]} (25... Qe8 $142 26. Bxb6 Kg7) 26. Rd3 {[%emt 0:01:37]} (26. Bxb6 $18 {is the precise move to win.} Ra8 27. Ne2) 26... Ba8 {[%emt 0:02:43]} 27. Rcd1 {[%emt 0:01:00]} Rc7 {[%emt 0:00:22]} 28. Kh2 {[%emt 0:02:04]} Kg7 {[%emt 0:01:05]} 29. Qb2 {[%emt 0:01:00]} Qe8 {[%emt 0:04:35]} 30. Qd2 {[%emt 0:01:09]} Bb4 {[%emt 0:00:58]} 31. Bxh6+ {[%emt 0:00:17][%cal Be3h6,Bh6g5,Bg5d8][%mdl 32]} Kh7 {[%emt 0:00:04]} 32. Bg5 {[%emt 0:00:04]} Nh5 {[%emt 0:01:00]} (32... Qe7 {was necessary.} 33. Qf2 Ng4+ 34. fxg4 Qxg5) 33. Qe3 {[%emt 0:02:10]} (33. g4 $142 Nf4 {[#]} 34. Qf2 $1) 33... Nf4 {[%emt 0:00:25]} (33... f6) 34. Rd8 {[%emt 0:00:26] White is clearly winning.} Rxc3 {[%emt 0:01:42]} 35. Qf2 {[%emt 0:00:44]} Rxd8 {[%emt 0:00:26]} 36. Rxd8 {[%emt 0:00:02]} Qxd8 {[%emt 0:00:19]} 37. Bxd8 {[%emt 0:00:09]} Rc1 {[%emt 0:00:43]} 38. Qh4+ {[%emt 0:00:22]} Nh5 {[%emt 0:00:04]} 39. Bxf7 {[%emt 0:01:14]} Bd2 {[%emt 0:00:45] [#]} 40. Bxg6+ $1 {[%emt 0:00:00]} Kxg6 {[%emt 0:00:00]} 41. Qg4+ {[%emt 0:00:00]} Kh6 {[%emt 0:00:00]} 42. Qe6+ {[%emt 0:00:00]} Kh7 {[%emt 0:00:00]} 43. Qd7+ {[%emt 0:00:00] Weighted Error Value: White=0.26 (precise) /Black=0.38} 1-0

[Event "15th Arad Open 2022"]
[Site "Arad"]
[Date "2022.08.12"]
[Round "7.3"]
[White "Srbis, Jurica"]
[Black "Manolache, Marius"]
[Result "1/2-1/2"]
[ECO "B07"]
[WhiteElo "2472"]
[BlackElo "2469"]
[Annotator "TA"]
[PlyCount "87"]
[EventDate "2022.08.08"]
[EventType "swiss"]
[EventCountry "ROU"]
[SourceTitle "playchess.com"]
[Source "ChessBase"]
[SourceQuality "1"]
[TimeControl "5400+30"]

{[%evp 10,87,45,39,41,41,44,26,55,21,14,18,31,22,35,23,30,24,22,29,50,20,37,0,0,0,54,18,42,-39,29,19,34,15,19,0,238,-5,124,133,117,132,141,93,133,84,91,12,122,136,202,69,78,67,142,160,159,148,194,151,158,117,117,84,85,87,77,22,22,0,0,-8,-8,-8,-8,-8,0,-8,-8,-9]} 1. e4 {[%emt 0:00:11]} d6 {[%emt 0:00:15]} 2. d4 {[%emt 0:00:26]} Nf6 {[%emt 0:00:19]} 3. Nc3 {[%emt 0:00:29]} g6 {[%emt 0:00:07]} 4. Be3 {[%emt 0:00:28]} c6 {[%emt 0:00:26]} 5. Qd2 {[%emt 0:00:19]} b5 {[%emt 0:00:42]} 6. f3 {[%emt 0:00:12]} h5 {[%emt 0:00:35] B07: Pirc Defence: Miscellaneous Systems.} 7. Bd3 {[%emt 0:10:45]} Bg7 {[%emt 0:03:51]} 8. a3 {[%emt 0:00:59] [#]} Qc7 $146 {[%emt 0:00:31] White has an edge.} ({Predecessor:} 8... a6 9. Nge2 Nbd7 10. f4 Ng4 11. Bg1 c5 12. h3 cxd4 13. Bxd4 e5 14. Bg1 Ngf6 {1-0 (49) Fiszer,B (2228)-Spicak,K (1858) Warsaw 2022}) 9. Nge2 {[%emt 0:04:25]} Nbd7 {[%emt 0:07:21]} 10. O-O {[%emt 0:07:05]} O-O {[%emt 0:09:17]} 11. h3 {[%emt 0:22:15]} e5 {[%emt 0:00:14]} 12. f4 {[%emt 0:01:52]} a6 {[%emt 0:00:44]} 13. dxe5 {[%emt 0:00:43]} dxe5 {[%emt 0:00:08]} 14. f5 {[%emt 0:00:54]} Bb7 {[%emt 0:00:49]} 15. Bg5 {[%emt 0:08:41]} Nh7 {[%emt 0:05:54]} 16. Be7 {[%emt 0:05:17]} Rfe8 $1 {[%emt 0:00:11]} 17. Bh4 {[%emt 0:00:07]} Ndf6 {[%emt 0:00:44]} (17... c5 $11 18. b3 Nb6) 18. Ng3 {[%emt 0:01:27]} Rad8 {[%emt 0:03:06]} 19. Rf3 {[%emt 0:09:08]} (19. a4 $14) 19... Rd6 {[%emt 0:12:22]} (19... c5 $1 $15 20. Qe3 c4) 20. Raf1 {[%emt 0:05:48]} Kh8 {[%emt 0:02:02]} 21. fxg6 {[%emt 0:01:02]} fxg6 {[%emt 0:00:05]} 22. Qc1 {[%emt 0:03:13]} c5 $2 {[%emt 0:05:42] [#]} (22... Rf8 $11) 23. Bxf6 $2 {[%emt 0:01:31]} ({Only move:} 23. Bxb5 $1 $18 {[%mdl 512]} Rf8 (23... Rc8 24. Bc4) 24. Bc4) 23... Nxf6 {[%emt 0:00:20] [#]} (23... Rxf6 $11 {keeps the balance.} 24. Nd5 Bxd5 25. exd5 c4 26. Rxf6 Bxf6 27. Rxf6 (27. Bxg6 Bg5 $17) 27... Nxf6 28. Bxg6 Rg8 29. Qh6+ Nh7) 24. Bxb5 $1 $16 {[%emt 0:00:17][%mdl 512]} Rf8 {[%emt 0:05:34]} (24... axb5 $2 25. Nxb5 Rd1 26. Qxd1 $18) 25. Bc4 {[%emt 0:00:18]} Kh7 {[%emt 0:00:11]} 26. Bd5 {[%emt 0:01:19]} (26. Qe1 $142) 26... Bc8 {[%emt 0:01:03]} 27. Qe3 {[%emt 0:02:05]} (27. R1f2 $142) 27... c4 {[%emt 0:03:28]} 28. Nge2 {[%emt 0:00:45]} (28. Kh1 $16) 28... Bd7 {[%emt 0:03:48]} (28... Bh6 $11 29. Qf2 g5) 29. Kh1 {[%emt 0:01:52]} Qb8 {[%emt 0:05:57]} (29... Be8 $16 {was worth a try.} 30. a4 Nxd5 31. Nxd5 (31. exd5 Rxf3 32. Rxf3 Bf7 $14) 31... Rxf3 32. Rxf3 (32. Nxc7 $2 {too greedy.} Rxe3 33. Nxe8 Rd8 $19) (32. Qxf3 Qb7 $16) 32... Qb7) 30. b4 {[%emt 0:01:30]} (30. Bxc4 $18 {Hoping for b4.} Qxb2 31. Qg5) 30... cxb3 $1 $14 {[%emt 0:00:18]} 31. cxb3 {[%emt 0:00:11]} Nxd5 {[%emt 0:02:55]} ({Black should try} 31... a5 $14) 32. Nxd5 $16 {[%emt 0:00:17] Threatens to win with Rxf8.} Rxf3 {[%emt 0:00:08]} 33. Rxf3 {[%emt 0:00:28][%cal Bf1f3,Bf3c3,Bc3c7][%mdl 32]} ({Don't play} 33. Qxf3 $6 Be6 $16) 33... Be8 {[%emt 0:03:09]} (33... Be6 $16 {keeps fighting.}) 34. Qg5 {[%emt 0:01:34]} Qd8 {[%emt 0:01:15]} 35. Qxd8 {[%emt 0:01:32] White is much more active.} Rxd8 {[%emt 0:00:04]} 36. Rc3 {[%emt 0:01:39]} a5 {[%emt 0:02:40]} 37. Rc7 {[%emt 0:01:31] Inhibits Bf7.} Kh6 {[%emt 0:00:10]} 38. Nc1 {[%emt 0:01:42]} ({Better is} 38. a4 $16) 38... Bf8 $1 $11 {[%emt 0:00:30] The position is equal.} 39. Nd3 {[%emt 0:01:12]} Bxa3 {[%emt 0:00:29]} 40. Nxe5 {[%emt 0:00:00]} Bd6 {[%emt 0:00:00][%csl LRc7,LRe5] This bishop pair is nice.} 41. Nf7+ {[%emt 0:00:00]} Bxf7 {[%emt 0:00:00]} 42. Rxf7 {[%emt 0:00:00]} Rc8 {[%emt 0:00:00] ( -> ...Rc1+)} 43. Rf1 {[%emt 0:00:00] Against Rc1} Rc2 {[%emt 0:24:36]} 44. Ne3 {White really could win this.  Weighted Error Value: White=0.33/Black=0.31} 1/2-1/2

[Event "15th Arad Open 2022"]
[Site "Arad"]
[Date "2022.08.12"]
[Round "7.4"]
[White "David, Alexandru-Vasile"]
[Black "Ghita, Vlad-Bogdan"]
[Result "1-0"]
[ECO "D30"]
[WhiteElo "2433"]
[BlackElo "1944"]
[Annotator "TA"]
[PlyCount "51"]
[EventDate "2022.08.08"]
[EventType "swiss"]
[EventCountry "ROU"]
[SourceTitle "playchess.com"]
[Source "ChessBase"]
[SourceQuality "1"]
[TimeControl "5400+30"]

{[%evp 16,51,47,28,44,23,61,30,32,12,-6,25,52,49,57,77,70,13,176,179,227,196,196,201,659,668,662,506,569,559,788,743,754,662,933,927,881,871]} 1. d4 {[%emt 0:00:03]} d5 {[%emt 0:00:05]} 2. c4 {[%emt 0:00:11]} c6 {[%emt 0:00:07]} 3. Nf3 {[%emt 0:00:10]} Nf6 {[%emt 0:00:06]} 4. e3 {[%emt 0:00:06]} e6 {[%emt 0:00:32]} 5. Bd3 {[%emt 0:00:19]} dxc4 {[%emt 0:00:18]} 6. Bxc4 {[%emt 0:00:09]} b5 {[%emt 0:00:07]} 7. Bd3 {[%emt 0:00:23]} Bb7 {[%emt 0:00:59]} 8. O-O {[%emt 0:02:31]} Nbd7 {[%emt 0:00:23]} 9. e4 {[%emt 0:00:15]} a6 {[%emt 0:00:20] D30: Queen's Gambit Declined: Systems without Nc3.} 10. a4 {[%emt 0:02:32]} b4 {[%emt 0:00:36]} 11. Bg5 {[%emt 0:02:23]} h6 {[%emt 0:00:44] White has an edge.} 12. Bh4 {[%emt 0:00:10]} g5 {[%emt 0:01:16]} 13. Bg3 {[%emt 0:00:12]} c5 {[%emt 0:00:04]} 14. d5 {[%emt 0:01:08] [#]} ({Much worse is} 14. Nbd2 cxd4 15. Rc1 (15. Nxd4 Nc5 $15) 15... Nc5 $11) 14... Bg7 $146 {[%emt 0:01:55]} ({Predecessor:} 14... exd5 15. exd5 Nxd5 16. Re1+ Be7 17. Bd6 O-O 18. Bxe7 Nxe7 19. h4 g4 20. Nh2 h5 {0-1 (45) Dragun,K (2568)-Hayrapetyan,A (2320) Yerevan 2015}) 15. dxe6 {[%emt 0:05:01]} fxe6 {[%emt 0:00:02]} 16. Bd6 {[%emt 0:01:36]} ({Better is} 16. Nbd2 $14) 16... Qb6 $2 {[%emt 0:01:04] [#] This move loses the game for Black.} (16... Bxe4 $2 17. Re1 Bxd3 18. Rxe6+ (18. Qxd3 Kf7 $16) 18... Kf7 19. Re7+ Qxe7 20. Bxe7 $16) (16... Nxe4 $11 {and Black is okay.} 17. Bxe4 Bxe4) 17. e5 $1 $18 {[%emt 0:00:52]} Nd5 {[%emt 0:00:12]} (17... Ne4 $142) 18. Bg6+ {[%emt 0:00:36][%cal Bd3g6,Bg6e4,Be4b7][%mdl 32]} Kd8 {[%emt 0:00:01]} 19. Nbd2 {[%emt 0:01:10][%cal Bb1d2,Bd2c4,Bc4a5][%mdl 32]} g4 $2 {[%emt 0:01:07]} (19... Nf4) 20. Nc4 {[%emt 0:01:46] White is clearly winning.} Qc6 {[%emt 0:00:05]} 21. Nh4 {[%emt 0:00:06]} h5 {[%emt 0:01:24]} 22. Be4 {[%emt 0:02:53]} N7b6 {[%emt 0:01:15]} 23. Na5 {[%emt 0:01:38]} Qd7 {[%emt 0:00:05]} 24. Bxc5 {[%emt 0:00:54]} Bxe5 {[%emt 0:00:09]} 25. Bxb6+ {[%emt 0:00:19]} Nxb6 {[%emt 0:00:04]} 26. Bxb7 {[%emt 0:00:23] Weighted Error Value: White=0.20 (precise) /Black=0.75} 1-0

[Event "15th Arad Open 2022"]
[Site "Arad"]
[Date "2022.08.12"]
[Round "7.5"]
[White "Ionescu, Mihai"]
[Black "Secheres, Adrian-Simion"]
[Result "0-1"]
[ECO "A26"]
[WhiteElo "2250"]
[BlackElo "2360"]
[Annotator "TA"]
[PlyCount "92"]
[EventDate "2022.08.08"]
[EventType "swiss"]
[EventCountry "ROU"]
[SourceTitle "playchess.com"]
[Source "ChessBase"]
[SourceQuality "1"]
[TimeControl "5400+30"]

{[%evp 25,92,16,27,23,22,0,5,-7,33,0,0,-25,0,0,27,-16,0,0,0,0,8,-20,-21,-27,-23,-16,-21,-168,-191,-145,-72,-137,-208,-270,-266,-272,-218,-218,-207,-359,-363,-360,-363,-363,-360,-337,-330,-358,-320,-404,-404,-404,-404,-431,-422,-405,0,-419,-419,-416,-389,-475,-459,-926,-875,-29993,-29994,-29995,-29996]} 1. Nf3 {[%emt 0:00:09]} Nf6 {[%emt 0:01:38]} 2. c4 {[%emt 0:00:15]} g6 {[%emt 0:00:27]} 3. g3 {[%emt 0:00:23]} Bg7 {[%emt 0:00:21]} 4. Bg2 {[%emt 0:00:19]} O-O {[%emt 0:00:16]} 5. O-O {[%emt 0:00:17]} d6 {[%emt 0:00:58]} 6. Nc3 {[%emt 0:00:39]} Nc6 {[%emt 0:00:48]} 7. Rb1 {[%emt 0:01:09]} e5 {[%emt 0:02:17]} 8. d3 {[%emt 0:00:22]} a5 {[%emt 0:00:34]} 9. a3 {[%emt 0:00:22][%cal Ba2a3,Ba3b4,Bb4b5][%mdl 32]} h6 {[%emt 0:00:24]} 10. b4 {[%emt 0:00:34]} axb4 {[%emt 0:00:07]} 11. axb4 {[%emt 0:00:08]} Be6 {[%emt 0:00:20]} 12. b5 {[%emt 0:01:09]} Ne7 {[%emt 0:00:18]} 13. Bb2 {[%emt 0:01:36]} Qd7 {[%emt 0:00:56]} 14. Qc2 {[%emt 0:04:04] A26: English Opening vs King's Indian with ...Nc6 and d3.} Bh3 {[%emt 0:03:56]} 15. e4 {[%emt 0:06:15] [#]} Nh5 $146 {[%emt 0:21:07][%cal Oh5f4]} ({Predecessor:} 15... Bxg2 16. Kxg2 Nh5 17. Ra1 f5 18. exf5 Nxf5 19. Rxa8 Rxa8 20. Ra1 Rxa1 21. Bxa1 c6 22. bxc6 bxc6 {½-½ (40) Galvis,S (1762)-Mora,M (1926) Florencia 2013}) 16. Nd2 {[%emt 0:09:50] The position is equal.} c6 {[%emt 0:02:11][%cal Oh5f4]} (16... Nf4 $5 {[%cal Rh3g2]} 17. Bxh3 (17. gxf4 $2 {is a self mate.} Qg4 18. fxe5 Qxg2#) 17... Nxh3+ 18. Kh1 f5 $15) 17. bxc6 {[%emt 0:03:03]} bxc6 {[%emt 0:00:34][%cal Oh5f4]} 18. Ra1 {[%emt 0:00:56]} Bxg2 {[%emt 0:06:28]} 19. Kxg2 {[%emt 0:00:20]} f5 {[%emt 0:01:00]} 20. f3 {[%emt 0:03:35]} Nf6 {[%emt 0:07:25]} 21. Na4 {[%emt 0:06:53]} Qe6 {[%emt 0:06:25]} 22. c5 {[%emt 0:10:18]} d5 {[%emt 0:03:04]} 23. Nb6 {[%emt 0:00:35]} Rxa1 {[%emt 0:01:34]} 24. Bxa1 {[%emt 0:04:16]} ({Much less strong is} 24. Rxa1 g5 $14) 24... g5 {[%emt 0:02:35]} 25. Re1 {[%emt 0:02:24]} f4 {[%emt 0:08:23]} 26. g4 {[%emt 0:15:52] [#]} (26. gxf4 $11 {and White is okay.} Nh5 27. f5 Nf4+ 28. Kh1 Nxf5 29. exf5 Qxf5 30. Qb1) 26... h5 $1 $19 {[%emt 0:10:12]} 27. gxh5 {[%emt 0:00:59]} g4 {[%emt 0:01:04]} (27... Nxh5 $142 {Hoping for ...g4.} 28. Kg1 g4) 28. Kh1 {[%emt 0:01:40]} ({Better is} 28. h6 Bxh6 29. Kh1) 28... Nxh5 $17 {[%emt 0:02:03]} 29. Qd1 {[%emt 0:07:27]} g3 {[%emt 0:01:51] aiming for ...gxh2.} 30. Re2 {[%emt 0:03:12]} Qh3 {[%emt 0:03:08]} 31. Qf1 {[%emt 0:08:20]} g2+ {[%emt 0:05:39]} 32. Qxg2 $2 {[%emt 0:00:14]} (32. Rxg2 {only move.} Ng3+ 33. Rxg3 Qxf1+ 34. Nxf1 fxg3 35. Kg2) 32... Ng3+ $1 $19 {[%emt 0:00:14]} 33. Kg1 {[%emt 0:00:10]} Nxe2+ {[%emt 0:00:15]} 34. Qxe2 {[%emt 0:00:08]} Rf6 {[%emt 0:01:09] [#] Strongly threatening ...Rg6+.} 35. Kh1 {[%emt 0:02:05]} d4 {[%emt 0:00:24]} 36. Qg2 {[%emt 0:04:05]} Qh4 {[%emt 0:01:03] White must now prevent ...Qe1+.} 37. Qf1 {[%emt 0:01:31] Inhibits Qe1.} Rh6 {[%emt 0:01:52][%csl Gh6][%cal Rh4h2]} 38. Qe2 {[%emt 0:00:23]} Ng6 {[%emt 0:01:13]} 39. Nbc4 {[%emt 0:01:31]} Qh3 {[%emt 0:03:56]} 40. Qg2 {[%emt 0:00:00]} Qh4 {[%emt 0:00:00]} 41. Qe2 $1 {[%emt 0:00:00]} Qe7 {[%emt 0:00:00]} 42. Nd6 {[%emt 0:00:00]} Nh4 {[%emt 0:00:00]} 43. Qe1 {[%emt 0:00:00]} Qe6 {[%emt 0:00:00] ...Qh3 is the strong threat.} ({Don't blunder} 43... Qg5 $2 44. Qf2 $19) 44. Bb2 {[%emt 0:00:00]} (44. Qf1 $142 Rg6 45. Nf5 Nxf5 46. exf5 Qxf5 47. Bb2) 44... Qh3 {[%emt 0:00:00][%csl Gh4][%cal Rh3g2]} 45. Qf2 {[%emt 0:00:00] Prevents Qg2+.} Rg6 {[%emt 0:00:00]} 46. Nf5 {[%emt 0:00:00]} Rg2 {[%emt 0:00:00] Weighted Error Value: White=0.49/Black=0.19 (very precise)} 0-1